{"text_format":"1","workbook":"xlsx","n_sheets":5,"sheets":["Risikovurderingsskjema","Skala rettledning","Skala ergonomi","Fargekoder","SJA"],"not_rendered":{"charts":0,"images":0,"macros":0,"external_links":0,"defined_names":0,"comments":1,"pivot_tables":0},"unopened":[],"bounds":{"document_bytes":16777216,"sheet_cells":100000,"rows_first":2000,"rows_last":500,"rows_between":2000,"halvings":0,"cell_chars":16384,"cell_head_chars":4096},"cells_cut":0,"cells_raw":0,"read":"whole","date_system":"1900"}

{"sheet":"Risikovurderingsskjema","index":0,"n_rows":35,"n_cols":12,"rows_kept":35,"cut":false,"hidden":false,"merged":[[0,12,1048575,21],[0,0,0,11],[1,0,25,0],[3,2,3,3],[5,2,5,3],[1,1,1,11],[2,1,2,11],[6,1,6,11],[3,4,5,11],[4,2,4,3]]}
[{"$f":"A:L+M1+1:1048576+B2+B3a","v":0}]
[null,"Risikovurdering av HMS-forhold - GROVANALYSE"]
[]
[null,"Avdeling: ",null,null,"Dette skjemat er en grovanalyse tilpasset kjente eksponeringsforhold/faremomenter i vaktmesteryrket."]
[null,"Dato: "]
[null,"Aktivitet / prosess","Generell risikovurdering"]
[]
[null,"Hva kan gå galt","Mulige årsaker","Konsekvens","Eksisterende tiltak","S","K","R","Forslag om tiltak","S","K","R"]
[null,"Fallskade på grunn av arbeid i høyden",null,null,null,null,null,{"$f":"F9*G9","v":0},null,null,null,{"$f":"J9*K9","v":0}]
[null,"Hørselskade på grunn  av støy",null,null,null,null,null,0,null,null,null,0]
[null,"Kutt-/klemskade fra arbeidsutstyr",null,null,null,null,null,0,null,null,null,0]
[null,"Utforkjøring, påkjørsel, velt",null,null,null,null,null,0,null,null,null,0]
[null,"Støt",null,null,null,null,null,0,null,null,null,0]
[null,"Eksponering for kreftfremkallende, arvestoffsakdelige, reproduksjonskadelige stoffer, løsemidler, giftige stoffer, asbest, syre",null,null,null,null,null,0,null,null,null,0]
[null,"Psykososialtarbeidsmiljø: stress",null,null,null,null,null,0,null,null,null,0]
[null,"Økt konsekvens på grunn av alenearbeid",null,null,null,null,null,0,null,null,null,0]
[null,"Muskel- og skjelettlidelser",null,null,null,null,null,0,null,null,null,0]
[null,"Smitte fra biologiske substanser",null,null,null,null,null,0,null,null,null,0]
[null,null,null,null,null,null,null,0,null,null,null,0]
[null,null,null,null,null,null,null,0,null,null,null,0]
[null,null,null,null,null,null,null,0,null,null,null,0]
[null,null,null,null,null,null,null,0,null,null,null,0]
[null,null,null,null,null,null,null,0,null,null,null,0]
[null,null,null,null,null,null,null,0,null,null,null,0]
[null,null,null,null,null,null,null,0,null,null,null,0]
[null,null,null,null,null,null,null,0,null,null,null,0]
[null,null,null,null,null,null,null,0,null,null,null,0]
[null,null,null,null,null,null,null,0,null,null,null,0]
[null,null,null,null,null,null,null,0,null,null,null,0]
[null,null,null,null,null,null,null,0,null,null,null,0]
[null,null,null,null,null,null,null,0,null,null,null,0]
[null,null,null,null,null,null,null,0,null,null,null,0]
[null,null,null,null,null,null,null,0,null,null,null,0]
[null,null,null,null,null,null,null,0,null,null,null,0]
[null,null,null,null,null,null,null,0,null,null,null,0]

{"sheet":"Skala rettledning","index":1,"n_rows":15,"n_cols":7,"rows_kept":15,"cut":false,"hidden":false,"merged":[[2,4,2,6],[2,0,2,2],[11,0,11,2]]}
[" "]
[]
["Sannsynlighet (S)",null,null,null,"KONSEKVENS (K)"]
[null,null,"Forklaring",null,null,null,"Personar"]
[1,"Lite sannsynlig","Ingen tilfeller i virksomheten, men kan ha hørt at det har hendt i liknende virksometer",null,1,"Ufarlig","Ubetydelig personskade. Ubetydelig helseplage. Mindre ubehag/irritasjon . Ikke fravær"]
[2,"Mindre sannsynlig","1 gang pr. 10 år eller oftere.",null,2,"Mindre farlig","Mindre personskade. Mindre helseplage, akutte helseplager. (akutt sykdom med fraver mindre enn 3 dager) Hjelp eller vurdering fra helsepersonell påkrevd. "]
[3,"Sannsynlig","Skjer årlig. Kjenner til flere enkelttilfeller av kortere varighet",null,3,"Farlig","Flere enkelttilfelle av alvorlig syke/skadde. Betydelig og alvorlig helseplage, akutte helseskader, med over 3 dagar fraver. Avvik fra regler og prosedyrer. "]
[4,"Meget sannsynlig","Skjer månedlig. Forhold som opptrer i lengre perioder",null,4,"Kritisk","Omfattende helseplage som kan medføre varig mén, lengre fraver. Rammer også nøkkelfunksjoner i virksomheten. Avvik fra regler og prosedyrer."]
[5,"Svært sannsynlig","Skjer hver uke. Forhold som er kontinuerlig tilstede i bedriften.",null,5,"Svært kritisk","Kan resultere i livstruende helseskade, uføre, eller død. Mange alvorlig syke, skadde. Alvorlig avvik fra regler og prosedyrer."]
[]
[]
["Risikohandtering "]
[" 1 - 4","Lav risiko ","Kan bli akseptert uten videre. Risikoreduserende tiltak kan vurderes opp mot kost/nytte-effekt."]
[" 5 - 9 ","Middels risiko ","Kan bli akseptert etter vurdering. Bør vurdere risikoreduserende tiltak."]
[" 10 - 25 ","Høy risiko ","Ikke akseptabelt. Alle hendelser skal vurderes opp mot risikoreduserende tiltak."]

{"sheet":"Skala ergonomi","index":2,"n_rows":17,"n_cols":7,"rows_kept":17,"cut":false,"hidden":false,"merged":[[0,0,0,6],[2,0,2,2],[2,4,2,6],[13,0,13,2]]}
["Skala for ergonomi "]
[]
["Sannsynlighet (S)",null,null,null,"KONSEKVENS (K)"]
[null,"Grad","Forklaring",null,null,"Grad","Menneske "]
[1,"Skjer svært\n sjelden/aldri","Sannsynlighet for at belastningsplage/-skade kan inntreffe i enheten en/flere ganger hvert 10. år eller sjeldnere",null,1,"Ubetydeleg","Ubetydelig skade/plage \nIngen fravær"]
[2,"Skjer sjelden","Sannsynlighet for at belastningsplage/-skade kan inntreffe i enheten en/flere ganger pr. 5 år",null,2,"Mindre alvorlig","Kortvarig, forbigående skade/plage.\nSykefravær 1 – 16 dager"]
[3,"Skjer av og til","Sannsynlighet for at belastningsplage/-skade kan inntreffe i enheten en gang pr. år",null,3,"Betydelig","Alvorlig, men forbigående skade/plage\nSykefravær 16 dager – 8 uker"]
[4,"Skjer ofte","Sannsynlighet for at belastningsplage/-skade kan inntreffe i enheten en/flere ganger i havåret. ",null,4,"Alvorlig","Langvarig skade/plage. \nSykefravær over 8 uker. "]
[5,"Skjer svært ofte","Sannsynlighet for at belastningsplage/-skade kan inntreffe i enheten en/flere ganger pr. mnd ",null,5,"Svært alvorlig","Medisinsk uførhet / yrkesrettet uførhet. Kan ikke lenger utføre denne typen arbeid. Fravær over 1 år. "]
[]
[]
[]
[]
["Risiko  (= S * K)"]
[" 1 - 4","Lav risiko ","Kan bli akseptert uten videre. Risikoreduserende tiltak kan vurderes opp mot kost/nytte-effekt."]
[" 5 - 9 ","Middels risiko ","Kan bli akseptert etter vurdering. Bør vurdere hmulighet for risikoreduserende tiltak."]
[" 10 - 25 ","Høy risiko ","Ikke akseptabelt. Alle hendelser skal vurderes opp mot risikoreduserende tiltak."]

{"sheet":"Fargekoder","index":3,"n_rows":14,"n_cols":8,"rows_kept":14,"cut":false,"hidden":false,"merged":[[4,1,8,1],[2,3,2,7],[11,3,11,4],[12,3,12,4],[13,3,13,4]]}
[]
[]
[null,null,null,"Konsekvens"]
[null,null,null,1,2,3,4,5]
[null,"Sann-synlighet",5,5,10,15,20,25]
[null,null,4,4,8,12,16,20]
[null,null,3,3,6,9,12,15]
[null,null,2,2,4,6,8,10]
[null,null,1,1,2,3,4,5]
[]
[]
[null,null," 1 - 4","Lav risiko "]
[null,null," 5 - 9 ","Middels risiko "]
[null,null," 10 - 25 ","Høy risiko "]

{"sheet":"SJA","index":4,"n_rows":8,"n_cols":7,"rows_kept":8,"cut":false,"hidden":false,"merged":[[0,0,0,5],[0,6,1048575,15],[1,0,29,0],[1,1,1,5],[2,1,2,5],[3,2,3,3],[3,5,5,5],[4,2,4,3],[5,2,5,3],[6,1,6,5]]}
[{"$f":"A:F+G1+1:1048576+B2+B3a","v":0},null,null,null,null,null,"SJA-analyse kan også være ett av tiltakene som gjøres etter en risikourdering, på områder hvos man vurderer det som hensiktmessig."]
[null,"SIKKER JOBB-ANALYSE (SJA)"]
[]
[null,"Avdeling: "]
[null,"Dato: "]
[null,"Arbeidsoppgave:"]
[]
[null,"Kritiske deloperasjoner/\ndelaktiviteter i jobben","Risikomomenter\n(Hva kan gå galt?)","Tiltak","Ansvarlig/tidsfrist","Utført\n"]